bitfinex/quotes_SOLUSD_20250805
["timestamp","ask_amount","ask_price","bid_price","bid_amount"]
[1754413998280,7.83149065,163.87,163.86,0.06]
[1754413998660,46.4292072,163.92,163.86,0.06]
[1754413998661,7.83149065,163.88,163.86,0.73]
[1754413998867,43.3,163.92,163.86,0.73]
[1754413998868,7.83149065,163.89,163.86,0.73]
[1754413999091,7.83149065,163.89,163.86,44.03]
[1754413999300,6.10065891,163.92,163.87,0.67]
[1754413999471,7.83149065,163.9,163.86,57.29425335]
[1754413999664,7.83149065,163.9,163.88,0.67]
[1754414000390,7.83149065,163.89,163.86,43.36]
[1754414000558,7.83149065,163.87,163.86,43.36]
[1754414000762,7.83149065,163.87,163.86,44.03]
[1754414000988,7.83149065,163.87,163.86,43.36]
[1754414001379,7.83149065,163.88,163.86,44.03]
[1754414001569,7.83149065,163.88,163.86,49.46275838]
[1754414001769,7.83149065,163.88,163.87,0.67]
[1754414002195,7.83149065,163.88,163.86,43.36]
[1754414002897,7.83149065,163.88,163.87,0.67]
[1754414003066,7.83149065,163.89,163.87,0.67]
[1754414003268,0.61,163.95,163.88,15.10621557]
[1754414003470,7.83149065,163.92,163.89,43.97]
[1754414003696,7.83149065,163.92,163.9,0.67]
[1754414004067,7.83149065,163.92,163.89,43.3]
[1754414004366,7.83149065,163.9,163.89,43.3]
[1754414004581,7.83149065,163.9,163.87,43.97]
[1754414005071,7.83149065,163.88,163.87,43.3]
[1754414005280,7.83149065,163.89,163.87,43.3]
[1754414006006,6.10054612,163.92,163.87,43.3]
[1754414006225,7.83149065,163.89,163.87,43.3]
[1754414007309,7.83149065,163.89,163.87,43.97]
[1754414008498,7.83149065,163.89,163.87,0.67]
[1754414008696,7.83149065,163.89,163.87,43.97]
[1754414009295,7.83149065,163.9,163.88,0.67]
[1754414009812,6.10054378,163.92,163.89,0.67]
[1754414010007,7.83149065,163.9,163.89,0.67]
[1754414010796,33.83149065,163.93,163.89,6.77165354]
[1754414011106,6.09948052,163.95,163.9,51.80149065]
[1754414011307,18.82948371,163.95,163.9,51.13149065]
[1754414011508,7.83149065,163.94,163.91,0.67]
[1754414011820,7.83149065,163.93,163.91,0.67]
[1754414012224,7.83149065,163.93,163.9,43.3]
[1754414012449,7.83149065,163.93,163.9,43.97]
[1754414013516,7.83149065,163.93,163.91,0.71]
[1754414014131,7.83149065,163.94,163.92,0.71]
[1754414014334,7.83149065,163.94,163.9,49.40123746]
[1754414014631,7.83149065,163.95,163.91,0.71]
[1754414015332,7.83149065,163.94,163.92,0.71]
[1754414015629,7.83149065,163.94,163.91,0.71]
[1754414017744,7.83149065,163.93,163.9,132.39999999]
[1754414017941,7.83149065,163.92,163.9,132.39999999]
[1754414018111,7.83149065,163.91,163.9,89.09999999]
[1754414018316,8.44149065,163.91,163.87,43.28]
[1754414018533,7.83149065,163.89,163.87,43.28]
[1754414019120,0.61,163.91,163.87,43.28]
[1754414019416,7.83149065,163.88,163.87,43.28]
[1754414019612,6.10139664,163.9,163.87,43.99]
[1754414019824,7.83149065,163.89,163.87,43.99]
[1754414020028,7.83149065,163.88,163.87,43.28]
[1754414020208,7.83149065,163.89,163.87,43.99]
[1754414020412,7.83149065,163.9,163.88,0.71]
[1754414020623,7.83149065,163.89,163.86,0.77]
[1754414020838,7.83149065,163.88,163.86,43.34]
[1754414021032,7.83149065,163.87,163.86,43.34]
[1754414021738,14.54388889,163.87,163.86,0.06]
[1754414021926,18.60810287,163.87,163.86,0.06]
[1754414022840,18.89242601,163.87,163.86,0.06]
[1754414023266,44.89242601,163.87,163.86,0.06]
[1754414023840,37.89570463,163.87,163.86,0.06]
[1754414024987,43.99810287,163.87,163.86,0.06]
[1754414026951,37.89570463,163.87,163.86,0.06]
[1754414027659,43.99810287,163.87,163.86,0.06]
[1754414028643,44.89242601,163.87,163.86,0.06]
[1754414029057,53.62239322,163.87,163.86,0.06]
[1754414029557,27.62239322,163.87,163.86,0.06]
[1754414030259,27.01239322,163.87,163.86,0.06]
[1754414030766,43.99810287,163.87,163.86,0.06]
[1754414033345,37.89570463,163.87,163.86,0.06]
[1754414033656,37.89570463,163.87,163.86,0.77]
[1754414035180,37.89570463,163.87,163.86,0.06]
[1754414035181,43.99810287,163.87,163.86,0.06]
[1754414035543,44.60810287,163.87,163.86,0.06]
[1754414035746,43.99810287,163.87,163.86,0.06]
[1754414036142,37.89570463,163.87,163.86,0.06]
[1754414037177,11.89570463,163.87,163.86,0.77]
[1754414037559,7.83149065,163.87,163.86,0.77]
[1754414038057,7.83149065,163.87,163.86,0.06]
[1754414039747,7.83149065,163.87,163.86,0.77]
[1754414041084,4.06421398,163.88,163.86,6.87277065]
[1754414041251,4.06421398,163.89,163.86,6.16277065]
[1754414041449,7.83149065,163.89,163.87,0.71]
[1754414041666,7.83149065,163.89,163.88,0.71]
[1754414041847,11.89570463,163.89,163.88,0.71]
[1754414042046,7.83149065,163.89,163.88,0.71]
[1754414042677,7.83149065,163.89,163.86,6.87271004]
[1754414042872,7.83149065,163.88,163.86,6.87271004]
[1754414043175,7.83149065,163.88,163.87,0.71]
[1754414044381,7.83149065,163.88,163.86,0.06]
[1754414044569,11.90270539,163.89,163.87,0.72]
[1754414044770,7.83149065,163.89,163.86,0.06]
[1754414044973,7.83149065,163.88,163.86,0.78]
[1754414045504,7.83149065,163.87,163.86,0.06]
[1754414046175,8.44149065,163.87,163.86,0.06]
[1754414046571,14.54388889,163.87,163.86,0.06]
[1754414047762,13.93388889,163.87,163.86,0.06]
[1754414047966,18.61726569,163.87,163.86,0.06]
[1754414048472,10.78577504,163.87,163.86,0.06]
[1754414048676,4.0733768,163.87,163.86,0.06]
[1754414048892,7.83149065,163.87,163.86,0.06]
[1754414049184,11.90486745,163.87,163.86,0.06]
[1754414049970,4.0733768,163.87,163.86,0.78]
[1754414050180,4.0733768,163.88,163.86,0.78]
[1754414050384,11.90486745,163.9,163.86,0.78]
[1754414050586,7.83149065,163.88,163.86,0.78]
[1754414050777,7.83149065,163.87,163.86,0.06]
[1754414051790,7.83149065,163.87,163.86,0.78]
[1754414052297,7.83149065,163.88,163.86,0.78]
[1754414052615,11.90486745,163.88,163.86,0.78]
[1754414053263,7.83149065,163.87,163.86,0.06]
[1754414053876,13.93388889,163.87,163.86,0.06]
[1754414054096,18.00726569,163.87,163.86,0.06]
[1754414055876,18.61726569,163.87,163.86,0.06]
[1754414056698,18.00726569,163.87,163.86,0.06]
[1754414057101,18.90158883,163.87,163.86,0.06]
[1754414057696,18.29158883,163.87,163.86,0.06]
[1754414057996,18.00726569,163.87,163.86,0.06]
[1754414059596,11.90486745,163.87,163.86,0.06]
[1754414059792,18.00726569,163.87,163.86,0.06]
[1754414060580,11.90486745,163.87,163.86,0.06]
[1754414060901,18.00726569,163.87,163.86,0.06]
[1754414061598,11.90486745,163.87,163.86,0.06]
[1754414061798,11.90486745,163.87,163.86,0.78]
[1754414063200,7.83149065,163.87,163.86,0.78]
[1754414063386,11.90486745,163.87,163.86,0.78]
[1754414063571,7.83149065,163.87,163.86,0.78]
[1754414063771,11.90486745,163.87,163.86,0.78]
[1754414064469,7.83149065,163.87,163.86,0.78]
[1754414064693,11.90486745,163.87,163.86,0.78]
[1754414065672,4.0733768,163.87,163.86,0.78]
[1754414065884,4.0733768,163.87,163.86,6.88277065]
[1754414066087,4.0733768,163.89,163.86,6.88277065]
[1754414066285,4.0733768,163.88,163.87,0.72]
[1754414066483,4.0733768,163.9,163.87,0.72]
[1754414066696,4.0733768,163.89,163.87,0.72]
[1754414066881,4.0733768,163.88,163.87,0.72]
[1754414067075,4.0733768,163.9,163.87,0.72]
[1754414067277,4.0733768,163.89,163.87,0.72]
[1754414067487,4.0733768,163.88,163.87,0.72]
[1754414067704,11.90486745,163.9,163.87,6.82227814]
[1754414067903,4.0733768,163.89,163.88,0.72]
[1754414069591,11.90486745,163.89,163.86,0.78]
[1754414069891,11.90486745,163.88,163.86,0.78]
[1754414070101,4.0733768,163.87,163.86,0.78]
[1754414070308,4.0733768,163.87,163.86,6.16272361]
[1754414070505,7.83149065,163.89,163.87,0.72]
[1754414070716,4.08968489,163.88,163.87,0.72]
[1754414070884,4.08968489,163.88,163.86,6.16272361]
[1754414071084,4.08968489,163.88,163.87,0.72]
[1754414071906,7.83149065,163.9,163.87,0.72]
[1754414071907,4.08968489,163.89,163.87,6.8223307]
[1754414072114,4.08968489,163.89,163.88,0.72]
[1754414073212,4.08968489,163.9,163.88,8.55149065]
[1754414073384,4.08968489,163.92,163.89,13.93314419]
[1754414073584,4.08968489,163.91,163.9,0.72]
[1754414073785,4.08968489,163.92,163.91,0.72]
[1754414074822,18.63171942,163.92,163.87,89.09999999]
[1754414075030,18.63171942,163.92,163.86,50.14274306]
[1754414075031,7.83149065,163.9,163.86,50.14274306]
[1754414075522,7.83149065,163.9,163.87,0.72]
[1754414075704,11.92117554,163.9,163.87,0.72]
[1754414076821,7.83149065,163.88,163.86,43.32]
[1754414077033,7.83149065,163.87,163.86,43.32]
[1754414077395,7.83149065,163.87,163.86,0.06]
[1754414078417,7.83149065,163.88,163.86,0.78]
[1754414078588,7.83149065,163.89,163.86,0.06]
[1754414078788,11.91697907,163.89,163.87,0.72]
[1754414079013,4.08548842,163.88,163.87,0.72]
[1754414079220,4.08548842,163.88,163.86,0.06]
[1754414079419,7.83149065,163.89,163.87,0.72]
[1754414079805,7.83149065,163.89,163.87,6.82239774]
[1754414080118,11.91697907,163.91,163.88,0.72]
[1754414080321,45.83589313,163.93,163.89,0.72]
[1754414080322,4.08548842,163.9,163.89,0.72]
[1754414080495,4.08548842,163.92,163.88,7.83149065]
[1754414080696,4.08548842,163.91,163.9,0.72]
[1754414080996,4.08548842,163.92,163.9,0.72]
[1754414081196,4.08548842,163.91,163.9,0.72]
[1754414081403,4.08548842,163.92,163.88,7.83149065]
[1754414081720,4.08548842,163.92,163.91,0.72]
[1754414082604,4.08548842,163.92,163.91,14.65239968]
[1754414082811,4.08548842,163.92,163.91,73.01861525]
[1754414083204,4.08548842,163.92,163.91,73.16077682]
[1754414083533,14.62097702,163.93,163.92,15.24837714]
[1754414083701,18.70369157,163.93,163.92,23.07986779]
[1754414083906,18.70369157,163.93,163.92,23.79986779]
[1754414084148,14.62097702,163.93,163.92,23.79986779]
[1754414084626,14.62097702,163.93,163.92,29.90040463]
[1754414086432,14.62097702,163.93,163.92,29.75824306]
[1754414086934,14.62097702,163.93,163.91,43.26]
[1754414087414,14.62097702,163.93,163.91,43.98]
[1754414087829,14.62097702,163.93,163.91,50.0808235]
[1754414088628,14.62097702,163.93,163.91,43.26]
[1754414089540,22.45246767,163.93,163.91,43.26]
[1754414091030,7.83149065,163.92,163.91,43.26]
[1754414092231,8.44149065,163.92,163.91,43.26]
[1754414092438,8.44149065,163.92,163.89,43.24]
[1754414092758,7.83149065,163.9,163.87,43.24]
[1754414092925,7.83149065,163.88,163.87,43.24]
[1754414093120,7.83149065,163.89,163.87,43.24]
[1754414093460,14.62097702,163.93,163.87,43.24]
[1754414093461,7.83149065,163.9,163.88,0.72]
[1754414094149,7.83149065,163.92,163.88,0.72]
[1754414094328,7.83149065,163.91,163.88,6.82202587]
[1754414094846,7.83149065,163.91,163.88,6.10202587]
[1754414095021,7.83149065,163.91,163.89,0.72]
[1754414096536,7.83149065,163.91,163.88,6.10202587]
[1754414096742,7.83149065,163.91,163.88,6.82202587]
[1754414097251,7.83149065,163.91,163.89,0.72]
[1754414098255,7.83149065,163.91,163.88,6.10202587]
[1754414098436,7.83149065,163.92,163.9,0.72]
[1754414098640,7.83149065,163.92,163.9,43.94]
[1754414099637,14.62097702,163.93,163.9,43.94]
[1754414099849,7.83149065,163.92,163.9,43.22]
[1754414100163,7.83149065,163.91,163.9,43.22]
[1754414100327,8.44149065,163.91,163.86,0.06]
[1754414100666,7.83149065,163.87,163.86,49.38277065]
[1754414100835,7.83149065,163.88,163.86,49.38277065]
[1754414101157,7.83149065,163.88,163.86,49.38266053]
[1754414101360,7.83149065,163.89,163.86,49.38266053]
[1754414101653,7.83149065,163.89,163.87,0.72]
[1754414101824,7.83149065,163.88,163.86,49.38266053]
[1754414102244,7.83149065,163.88,163.86,50.10266053]
[1754414103454,7.83149065,163.88,163.87,0.72]
[1754414104557,6.10095191,163.91,163.86,49.38266053]
[1754414104752,7.83149065,163.88,163.86,50.06266053]
[1754414104930,0.61,163.91,163.87,0.68]
[1754414105132,4.07819237,163.91,163.87,0.68]
[1754414105362,7.83149065,163.89,163.86,49.38266053]
[1754414105533,7.83149065,163.89,163.86,50.06266053]
[1754414105855,7.83149065,163.89,163.87,0.68]
[1754414106026,7.83149065,163.89,163.86,49.38266053]
[1754414106222,7.83149065,163.89,163.88,0.68]
[1754414107349,32.10066008,163.92,163.88,50.00201302]
[1754414107350,7.83149065,163.92,163.88,50.00201302]
[1754414107538,7.83149065,163.92,163.89,0.68]
[1754414107737,7.83149065,163.92,163.9,43.22]
[1754414108061,7.83149065,163.92,163.9,43.9]
[1754414108553,7.83149065,163.92,163.9,43.22]
[1754414108755,7.83149065,163.92,163.91,0.68]
[1754414109054,14.62097702,163.93,163.92,15.10621557]
[1754414109360,14.62097702,163.93,163.92,59.00621557]
[1754414109533,14.62097702,163.93,163.92,66.83770622]
[1754414110439,14.62097702,163.93,163.92,59.00621557]
[1754414110658,14.62097702,163.93,163.92,65.10675241]
[1754414110939,14.62097702,163.93,163.92,72.93824306]
[1754414112547,14.62097702,163.93,163.92,65.10675241]
[1754414112885,14.62097702,163.93,163.92,49.32053684]
[1754414113184,14.62097702,163.93,163.92,43.22]
[1754414113340,14.62097702,163.93,163.92,49.32053684]
[1754414113734,14.62097702,163.93,163.92,43.22]
[1754414113974,14.62097702,163.93,163.92,50.00053684]
[1754414114439,14.62097702,163.93,163.92,57.83202749]
[1754414114636,14.62097702,163.93,163.92,73.08040463]
[1754414114863,0.03,163.97,163.93,15.10621557]
[1754414115038,0.03,163.97,163.94,51.05149065]
[1754414115256,0.03,163.97,163.94,51.73149065]
[1754414115942,0.03,163.97,163.95,0.68]
[1754414116139,0.03,163.97,163.96,43.22]
[1754414116672,0.03,163.97,163.96,57.83053919]
[1754414117240,0.03,163.97,163.96,49.99904854]
[1754414118140,0.03,163.97,163.96,73.07891633]
[1754414118979,1e-08,163.98,163.97,15.24837714]
[1754414119169,1e-08,163.98,163.97,24.65405858]
[1754414119947,1e-08,163.98,163.97,30.14286751]
[1754414120170,1e-08,163.98,163.97,29.85854437]
[1754414121062,1e-08,163.98,163.97,30.75273516]
[1754414121252,1e-08,163.99,163.97,30.75273516]
[1754414121457,1e-08,163.99,163.98,66.95986779]
[1754414122159,1e-08,163.99,163.98,73.05817246]
[1754414123251,1e-08,163.99,163.98,29.85817246]
[1754414123457,1e-08,163.99,163.98,72.37817246]
[1754414123881,1e-08,163.99,163.98,104.20621557]
[1754414124082,1e-08,163.99,163.98,147.38621557]
[1754414126190,7.93149066,163.99,163.98,43.18]
[1754414126480,7.83149066,163.99,163.98,43.18]
[1754414126685,1e-08,163.99,163.98,43.18]
[1754414127257,1e-08,163.99,163.96,15.10621557]
[1754414127583,1e-08,163.99,163.97,43.18]
[1754414128084,1e-08,163.99,163.97,43.86]
[1754414128289,1e-08,163.99,163.98,15.10621557]
[1754414128487,1e-08,163.99,163.98,15.78621557]
[1754414129485,1e-08,163.99,163.98,15.10621557]
[1754414129682,8.44149066,163.99,163.95,15.24837714]
[1754414129885,8.44149066,163.99,163.96,43.18]
[1754414130068,7.83149066,163.99,163.96,43.86]
[1754414130275,7.83149066,163.99,163.96,43.18]
[1754414130485,7.83149065,163.98,163.96,43.18]
[1754414130691,0.61,163.98,163.96,43.18]
[1754414131003,1e-08,163.99,163.97,0.68]
[1754414131209,1e-08,163.99,163.98,58.28621557]
[1754414131666,1e-08,163.99,163.98,58.96621557]
[1754414132211,1e-08,163.99,163.98,72.89601089]
[1754414132666,1e-08,163.99,163.98,58.28621557]
[1754414132863,1e-08,163.99,163.98,43.18]
[1754414133089,8.44149066,163.99,163.98,43.18]
[1754414133282,8.44149066,163.99,163.96,89.1]
[1754414133612,8.44149066,163.99,163.97,43.18]
[1754414133613,0.61,163.98,163.97,43.18]
[1754414134664,8.44149065,163.98,163.97,43.18]
[1754414135070,14.53979532,163.98,163.96,43.18]
[1754414135276,7.83149065,163.97,163.96,43.18]
[1754414137196,14.54016723,163.97,163.96,43.18]
[1754414137364,14.54016723,163.97,163.94,0.06]
[1754414137561,7.83149065,163.95,163.94,43.24]
[1754414138875,32.09875003,163.97,163.94,43.24]
[1754414139076,7.83149065,163.95,163.94,43.24]
[1754414139586,7.83149065,163.97,163.94,43.95]
[1754414139790,7.83149065,163.97,163.95,0.71]
[1754414139991,7.83149065,163.98,163.96,43.89]
[1754414140375,7.83149066,163.99,163.97,0.71]
[1754414141368,7.83149066,163.99,163.96,43.18]
[1754414141595,7.83149066,163.99,163.96,43.89]
[1754414142170,7.83149066,163.99,163.97,0.71]
[1754414142494,7.83149066,163.99,163.98,43.18]
[1754414143003,7.83149066,163.99,163.98,43.89]
[1754414143213,1e-08,163.99,163.98,43.89]
[1754414143509,1e-08,163.99,163.98,73.06817246]
[1754414145595,1e-08,163.99,163.98,65.23668181]
[1754414145791,1e-08,163.99,163.98,73.06817246]
[1754414146995,1e-08,163.99,163.98,65.84651227]
[1754414147180,1e-08,163.99,163.98,73.06817246]
[1754414148506,1e-08,163.99,163.98,64.52668181]
[1754414148677,1e-08,163.99,163.98,153.62668181]
[1754414149301,1e-08,163.99,163.98,154.33668181]
[1754414149913,1e-08,163.99,163.98,147.38621557]
[1754414150070,1e-08,163.99,163.98,43.18]
[1754414150274,1e-08,163.99,163.94,0.06]
[1754414150275,0.61000001,163.99,163.94,0.06]
[1754414150476,8.44149066,163.99,163.95,43.16]
[1754414150702,7.83149065,163.96,163.94,0.06]
[1754414150896,7.83149065,163.95,163.94,0.06]
[1754414151202,0.28432314,163.94,163.9,43.16]
[1754414151378,7.83149065,163.91,163.9,43.16]
[1754414151581,0.55,163.93,163.9,43.16]
[1754414151774,7.83149065,163.92,163.9,43.87]
[1754414152005,7.83149065,163.92,163.9,0.71]
[1754414152186,7.83149065,163.93,163.91,43.16]
[1754414152383,7.83149065,163.94,163.91,43.87]
[1754414152701,7.83149065,163.94,163.92,6.81044023]
[1754414152702,12.51773676,163.94,163.92,6.81044023]
[1754414152903,12.51773676,163.94,163.92,0.71]
[1754414153203,12.51773676,163.94,163.91,49.26081264]
[1754414153389,12.51773676,163.94,163.91,49.97081264]
[1754414153596,12.51773676,163.94,163.91,49.26081264]
[1754414153902,12.51773676,163.94,163.92,0.71]
[1754414154089,12.51773676,163.94,163.91,49.26081019]
[1754414154299,12.51773676,163.95,163.92,0.71]
[1754414154497,12.51773676,163.95,163.93,43.87]
[1754414155197,33.27266725,163.99,163.94,0.71]
[1754414155198,26.55000001,163.99,163.94,0.71]
[1754414155497,16.5836054,163.98,163.95,43.16]
[1754414155704,12.51773676,163.98,163.95,43.16]
[1754414156309,26.55000001,163.99,163.95,43.16]
[1754414156310,12.51773676,163.97,163.95,43.16]
[1754414156672,12.51773676,163.97,163.95,43.87]
[1754414157678,12.51773676,163.97,163.95,49.96933278]
[1754414158108,12.51773676,163.98,163.97,6.09867658]
[1754414158279,1e-08,163.99,163.97,43.87]
[1754414158724,12.51773677,163.99,163.97,43.16]
[1754414159407,0.55000001,163.99,163.97,43.16]
[1754414159906,1e-08,163.99,163.97,43.16]
[1754414160086,12.51773677,163.99,163.97,43.16]
[1754414160281,12.51773677,163.99,163.97,43.87]
[1754414160807,1e-08,163.99,163.98,0.71]
[1754414161209,1e-08,163.99,163.98,15.81621557]
[1754414162411,1e-08,163.99,163.98,21.91452024]
[1754414164780,1e-08,163.99,163.97,49.25857777]
[1754414164982,1e-08,163.99,163.97,49.94857777]
[1754414166105,1e-08,163.99,163.97,43.85]
[1754414166481,1e-08,163.99,163.97,49.94856388]
[1754414167187,1e-08,163.99,163.97,139.04856388]
[1754414167912,1e-08,163.99,163.97,138.35856388]
[1754414168218,12.51773676,163.98,163.97,43.16]
[1754414168391,13.06773676,163.98,163.97,43.16]
[1754414169105,13.06773676,163.98,163.95,43.16]
[1754414169294,12.51773676,163.96,163.93,0.06]
[1754414169495,12.51773676,163.94,163.93,0.06]
[1754414169895,13.06773676,163.94,163.93,0.06]
[1754414170488,17.1395764,163.94,163.93,0.06]
[1754414170696,23.239369,163.94,163.93,0.06]
[1754414170908,23.52369214,163.94,163.93,0.06]
[1754414172417,12.51773676,163.94,163.93,0.06]
[1754414172622,22.68787728,163.94,163.93,0.06]
[1754414172812,23.23787728,163.94,163.93,0.06]
[1754414173819,23.52220042,163.94,163.93,0.06]
[1754414174041,23.52220042,163.94,163.86,0.06]
[1754414174331,26.0,163.91,163.86,43.22]
[1754414174492,0.55,163.9,163.86,43.22]
[1754414174693,12.51773676,163.87,163.86,43.22]
[1754414175114,12.51773676,163.87,163.86,0.06]
[1754414176297,17.28858489,163.87,163.86,0.06]
[1754414177518,23.94098313,163.87,163.86,0.06]
[1754414177816,24.22530627,163.87,163.86,0.06]
[1754414180133,23.67530627,163.87,163.86,0.06]
[1754414180320,17.57290803,163.87,163.86,0.06]
[1754414180503,23.67530627,163.87,163.86,0.06]
[1754414180900,17.28858489,163.87,163.86,0.06]
[1754414181443,12.51773676,163.87,163.86,0.06]
[1754414181936,18.90445814,163.87,163.86,0.06]
[1754414182118,19.45445814,163.87,163.86,0.06]
[1754414182436,18.90445814,163.87,163.86,0.06]
[1754414182731,12.51773676,163.87,163.86,0.75]
[1754414183114,12.51773676,163.87,163.86,0.06]
[1754414183319,12.51773676,163.87,163.86,0.75]
[1754414185140,12.51773676,163.87,163.86,0.06]
[1754414186934,12.51773676,163.87,163.86,0.75]
[1754414187816,12.51773676,163.87,163.86,0.06]
[1754414188014,26.0,163.9,163.86,0.75]
[1754414188219,26.0,163.9,163.86,6.85258263]
[1754414188220,12.51773676,163.9,163.86,6.85258263]
[1754414188539,12.51773676,163.92,163.87,13.20773676]
[1754414188710,12.51773676,163.93,163.88,28.31395233]
[1754414188910,12.51773676,163.93,163.88,27.62395233]
[1754414189130,12.51773676,163.93,163.89,0.69]
[1754414189325,12.51773676,163.92,163.89,0.69]
[1754414189527,4.96581902,163.94,163.89,0.69]
[1754414189841,12.51773676,163.92,163.9,0.69]
[1754414190222,32.09952229,163.95,163.91,0.69]
[1754414190428,12.51773676,163.93,163.92,0.69]
[1754414191521,12.51773676,163.94,163.92,0.69]
[1754414191840,43.18,163.97,163.92,6.79053684]
[1754414192010,12.51773676,163.96,163.93,0.69]
[1754414192216,12.51773676,163.96,163.94,0.69]
[1754414192926,12.51773676,163.95,163.91,6.79085656]
[1754414193442,12.51773676,163.95,163.9,49.28124384]
[1754414193443,12.51773676,163.93,163.9,49.28124384]
[1754414193622,12.51773676,163.92,163.9,50.00124384]
[1754414193823,12.51773676,163.92,163.9,43.9]
[1754414194847,12.51773676,163.94,163.91,0.72]
[1754414195040,12.51773676,163.95,163.92,0.72]
[1754414195222,12.51773676,163.95,163.9,61.7989769]
[1754414195421,12.51773676,163.95,163.93,0.72]
[1754414195840,37.01473111,163.97,163.93,0.72]
[1754414196054,12.51773676,163.94,163.9,43.9]
[1754414196252,12.51773676,163.93,163.9,43.9]
[1754414196430,12.51773676,163.94,163.91,0.72]
[1754414196942,12.51773676,163.93,163.9,43.18]
[1754414197249,12.51773676,163.91,163.88,0.72]
[1754414197450,12.51773676,163.91,163.88,6.82195252]
[1754414197673,12.51773676,163.9,163.88,6.82195252]
[1754414197830,12.51773676,163.9,163.89,0.72]
[1754414198036,12.51773676,163.9,163.88,6.10195252]
[1754414198630,12.51773676,163.9,163.88,6.82195252]
[1754414199228,12.51773676,163.9,163.89,0.72]
[1754414199754,12.51773676,163.9,163.88,6.10195252]
[1754414199954,12.51773676,163.9,163.88,6.82195252]
[1754414200169,12.51773676,163.89,163.86,0.78]
[1754414200472,12.51773676,163.87,163.86,0.06]
[1754414201249,12.51773676,163.89,163.86,6.88274566]
[1754414201457,12.51773676,163.89,163.87,0.72]
[1754414201864,12.51773676,163.88,163.87,6.82239824]
[1754414202370,32.10017191,163.93,163.87,6.82239824]
[1754414202575,12.51773676,163.9,163.87,6.10239824]
[1754414202866,12.51773676,163.9,163.88,0.72]
[1754414203860,12.51773676,163.89,163.87,43.16]
[1754414204063,12.51773676,163.88,163.87,43.16]
[1754414204532,12.51773676,163.88,163.86,0.06]
[1754414204864,12.51773676,163.87,163.86,0.06]
[1754414205067,13.06773676,163.87,163.86,0.06]
[1754414206164,19.170135,163.87,163.86,0.06]
[1754414206459,18.620135,163.87,163.86,0.06]
[1754414206833,12.51773676,163.87,163.86,0.06]
[1754414207030,12.51773676,163.89,163.86,0.78]
[1754414207263,12.51773676,163.89,163.87,0.72]
[1754414207558,12.51773676,163.88,163.87,0.72]
[1754414207744,12.51773676,163.89,163.87,0.72]
[1754414207945,12.51773676,163.89,163.88,0.72]
[1754414208531,12.51773676,163.89,163.87,6.10235912]
[1754414208731,12.51773676,163.89,163.87,6.82235912]
[1754414208932,12.51773676,163.89,163.86,49.32259501]
[1754414209146,12.51773676,163.89,163.86,50.04259501]
[1754414209343,12.51773676,163.89,163.87,0.72]
[1754414210176,12.51773676,163.9,163.87,6.10235452]
[1754414210475,12.51773676,163.9,163.88,0.72]
[1754414211166,12.51773676,163.89,163.86,50.0426236]
[1754414211464,12.51773676,163.89,163.86,139.1426236]
[1754414211672,12.51773676,163.87,163.86,132.32]
[1754414212231,12.51773676,163.88,163.86,133.04]
[1754414212435,12.51773676,163.9,163.87,0.72]
[1754414212733,12.51773676,163.9,163.88,0.72]
[1754414212932,12.51773676,163.9,163.86,138.4226739]
[1754414212933,12.51773676,163.9,163.89,0.72]
[1754414213160,12.51773676,163.9,163.87,0.72]
[1754414213362,12.51773676,163.89,163.86,138.4226739]
[1754414213562,12.51773676,163.88,163.86,132.32]
[1754414213858,12.51773676,163.88,163.86,133.04]
[1754414214161,12.51773676,163.9,163.87,0.72]
[1754414214366,12.51773676,163.9,163.88,0.72]
[1754414215060,12.51773676,163.9,163.86,138.42268575]
[1754414215268,12.51773676,163.9,163.87,0.72]
[1754414215966,12.51773676,163.88,163.86,132.32]